bitfinex-derivatives/quotes_BNBF0:USTF0_20251010
["timestamp","ask_amount","ask_price","bid_price","bid_amount"]
[1760119691257,0.14153562,1230.4,1228.4,0.50942444]
[1760119691455,0.14153562,1230.4,1227.9,0.60139731]
[1760119691657,0.14153562,1230.4,1228.0,0.5094035]
[1760119691857,0.14153562,1230.4,1228.1,0.5094035]
[1760119692058,0.14153562,1230.4,1228.2,0.5094035]
[1760119692353,0.14153562,1230.4,1228.3,0.5094035]
[1760119692553,0.14153562,1230.4,1228.4,0.5094035]
[1760119692753,0.14153562,1230.4,1227.9,0.60139731]
[1760119692958,0.14153562,1230.4,1228.0,1.11087258]
[1760119693158,0.14153562,1230.4,1228.1,0.50947527]
[1760119693358,0.14153562,1230.4,1228.2,0.50947527]
[1760119693658,0.14153562,1230.4,1228.3,0.50947527]
[1760119693854,0.14153562,1230.4,1228.0,0.60139731]
[1760119693855,0.14153562,1230.4,1228.4,0.50947527]
[1760119694059,0.14153562,1230.4,1228.0,0.60139731]
[1760119694259,0.14153562,1230.4,1228.1,0.50914859]
[1760119694458,0.14153562,1230.4,1228.2,0.50914859]
[1760119694754,0.14153562,1230.4,1228.3,0.50914859]
[1760119694958,0.14153562,1230.4,1227.9,0.60139731]
[1760119695157,0.14153562,1230.4,1228.0,0.50916551]
[1760119695356,0.14153562,1230.4,1228.1,0.50916551]
[1760119695657,0.14153562,1230.4,1228.2,0.50916551]
[1760119695857,0.14153562,1230.4,1228.3,0.50916551]
[1760119696055,0.14153562,1230.4,1228.4,0.50916551]
[1760119696260,0.14153562,1230.4,1228.0,0.60139731]
[1760119696558,0.14153562,1230.4,1228.1,0.50856541]
[1760119696762,0.14153562,1230.4,1228.2,0.50856541]
[1760119696955,0.14153562,1230.4,1228.3,0.50856541]
[1760119697155,0.14153562,1230.4,1228.4,0.50856541]
[1760119697360,0.14153562,1230.4,1228.0,0.60139731]
[1760119697556,0.14153562,1230.4,1228.1,0.50844741]
[1760119697762,0.14153562,1230.4,1228.2,0.50844741]
[1760119697960,0.14153562,1230.4,1228.3,0.50844741]
[1760119698262,0.14153562,1230.4,1228.4,0.50844741]
[1760119698460,0.14153562,1230.4,1228.0,0.60139731]
[1760119698461,0.14153562,1230.4,1228.5,0.50844741]
[1760119698659,0.14153562,1230.4,1228.6,0.50844741]
[1760119698861,0.14153562,1230.4,1228.0,0.60139731]
[1760119699164,0.14153562,1230.4,1228.1,0.50825788]
[1760119699356,0.14153562,1230.4,1228.2,0.50825788]
[1760119699560,0.14153562,1230.4,1228.3,0.50825788]
[1760119699760,0.14153562,1230.4,1228.4,0.50825788]
[1760119699961,0.14153562,1230.4,1228.5,0.50825788]
[1760119700162,0.14153562,1230.4,1228.6,0.50825788]
[1760119700458,0.14153562,1230.4,1228.1,0.60139731]
[1760119700659,0.14153562,1230.4,1228.2,0.50808982]
[1760119700858,0.14153562,1230.4,1228.3,0.50808982]
[1760119701058,0.14153562,1230.4,1228.4,0.50808982]
[1760119701360,0.14153562,1230.4,1228.5,0.50808982]
[1760119701559,0.14153562,1230.4,1228.0,0.60139731]
[1760119701760,0.14153562,1230.4,1228.1,0.50820545]
[1760119701958,0.14153562,1230.4,1228.2,0.50820545]
[1760119702159,0.14153562,1230.4,1228.3,0.50820545]
[1760119702360,0.14153562,1230.4,1228.4,0.50820545]
[1760119702564,0.14153562,1230.4,1227.8,0.60139731]
[1760119702765,0.14153562,1230.4,1227.9,0.50834993]
[1760119702965,0.14153562,1230.4,1228.0,0.50834993]
[1760119703264,0.14153562,1230.4,1228.1,0.50834993]
[1760119703459,0.14153562,1230.4,1228.2,0.50834993]
[1760119703660,0.14153562,1230.4,1228.3,0.50834993]
[1760119703865,0.14153562,1230.4,1228.4,0.50834993]
[1760119704060,0.14153562,1230.4,1227.8,0.60139731]
[1760119704267,0.14153562,1230.4,1227.9,0.50831345]
[1760119704466,0.14153562,1230.4,1228.0,0.50831345]
[1760119704660,0.14153562,1230.4,1228.1,0.50831345]
[1760119704862,0.14153562,1230.4,1228.2,0.50831345]
[1760119705060,0.14153562,1230.4,1228.3,0.50831345]
[1760119705364,0.14153562,1230.4,1228.4,0.50826889]
[1760119705666,0.14153562,1230.4,1227.8,0.59427332]
[1760119705864,0.14153562,1230.4,1227.9,0.50825909]
[1760119706065,0.14153562,1230.4,1228.0,0.50825909]
[1760119706367,0.14153562,1230.4,1227.6,0.59427332]
[1760119706561,0.14153562,1230.4,1227.7,0.50864237]
[1760119706764,0.14153562,1230.4,1227.8,0.50864237]
[1760119706961,0.14153562,1230.4,1227.9,0.50864237]
[1760119707162,0.14153562,1230.4,1227.5,0.59427332]
[1760119707366,0.14153562,1230.4,1227.6,0.50894105]
[1760119707561,0.14153562,1230.4,1227.7,0.50894105]
[1760119707762,0.14153562,1230.4,1227.8,0.50894105]
[1760119708066,0.14153562,1230.4,1227.9,0.50894105]
[1760119708266,0.14153562,1230.4,1227.5,0.59427332]
[1760119708466,0.14153562,1230.4,1227.6,0.50921374]
[1760119708768,0.14153562,1230.4,1227.7,0.50921374]
[1760119709062,0.14153562,1230.4,1227.8,0.50921374]
[1760119709266,0.14153562,1230.4,1227.9,0.50921374]
[1760119709465,0.14153562,1230.4,1228.0,0.50921374]
[1760119709662,0.14153562,1230.4,1227.6,0.59427332]
[1760119709864,0.14153562,1230.4,1227.7,0.51054739]
[1760119710162,0.14153562,1230.4,1227.8,0.51054739]
[1760119710366,0.14153562,1230.4,1227.9,0.51054739]
[1760119710567,0.14153562,1230.4,1228.0,0.51054739]
[1760119710864,0.14153562,1230.4,1228.1,0.51054739]
[1760119711069,0.14153562,1230.4,1227.7,0.59427332]
[1760119711267,0.14153562,1230.4,1227.8,0.51108103]
[1760119711463,0.14153562,1230.4,1227.9,0.51108103]
[1760119711663,0.14153562,1230.4,1228.0,0.51108103]
[1760119711869,0.14153562,1230.4,1228.1,0.51108103]
[1760119712069,0.14153562,1230.4,1228.2,0.51108103]
[1760119712272,0.14153562,1230.4,1228.3,0.51108103]
[1760119712474,0.14153562,1230.4,1227.8,0.59427332]
[1760119712770,0.14153562,1230.4,1227.9,0.51140057]
[1760119712974,0.14153562,1230.4,1228.0,0.51140057]
[1760119713174,0.14153562,1230.4,1228.1,0.51140057]
[1760119713470,0.14153562,1230.4,1228.2,0.51140057]
[1760119713673,0.14153562,1230.4,1227.6,0.59427332]
[1760119713875,0.14153562,1230.4,1227.7,1.10622963]
[1760119714175,0.14153562,1230.4,1227.8,1.10622963]
[1760119714375,0.14153562,1230.4,1227.9,0.51195631]
[1760119714672,0.14153562,1230.4,1228.0,0.51195631]
[1760119714875,0.14153562,1230.4,1228.1,0.51195631]
[1760119715078,0.14153562,1230.4,1228.2,0.51195631]
[1760119715272,0.14153562,1230.4,1228.3,0.51195631]
[1760119715573,0.14153562,1230.4,1227.9,0.59427332]
[1760119715772,0.14153562,1230.4,1228.0,0.51342022]
[1760119716073,0.14153562,1230.4,1228.1,0.51342022]
[1760119716272,0.14153562,1230.4,1228.2,0.51342022]
[1760119716473,0.14153562,1230.4,1228.3,0.51342022]
[1760119716677,0.14153562,1230.4,1227.9,0.59427332]
[1760119716977,0.14153562,1230.4,1228.0,0.51433377]
[1760119717174,0.14153562,1230.4,1228.1,0.51433377]
[1760119717477,0.14153562,1230.4,1228.2,0.51433377]
[1760119717673,0.14153562,1230.4,1228.3,0.51433377]
[1760119717874,0.14153562,1230.4,1227.8,0.59427332]
[1760119718173,0.14153562,1230.4,1227.9,0.51515965]
[1760119718377,0.14153562,1230.4,1228.0,0.51515965]
[1760119718574,0.14153562,1230.4,1228.1,0.51515965]
[1760119718774,0.14153562,1230.4,1227.7,0.59427332]
[1760119718974,1.34731584,1230.4,1227.8,0.51607541]
[1760119719177,1.34731584,1230.4,1227.9,0.51607541]
[1760119719476,1.34731584,1230.4,1228.0,0.51607541]
[1760119719674,1.34731584,1230.4,1227.6,0.59427332]
[1760119719873,1.34731584,1230.4,1227.7,0.51630517]
[1760119720078,1.34731584,1230.4,1227.8,0.51630517]
[1760119720278,1.34731584,1230.4,1227.9,0.51630517]
[1760119720577,1.34731584,1230.4,1228.0,0.51630517]
[1760119720774,1.34731584,1230.4,1227.6,0.59427332]
[1760119721077,1.34731584,1230.4,1227.7,0.51649207]
[1760119721273,1.20578022,1230.3,1227.8,0.51649207]
[1760119721477,1.20578022,1230.3,1227.9,0.51649207]
[1760119721778,0.14153562,1230.4,1228.0,0.51649207]
[1760119722077,0.14153562,1230.4,1228.1,0.51649207]
[1760119722277,0.14153562,1230.4,1228.2,0.51649207]
[1760119722477,0.14153562,1230.4,1227.8,0.59427332]
[1760119722777,0.14153562,1230.4,1227.9,0.51689005]
[1760119722977,0.14153562,1230.4,1228.0,0.51689005]
[1760119723177,0.14153562,1230.4,1228.1,0.51689005]
[1760119723377,0.14153562,1230.4,1227.5,0.59427332]
[1760119723577,0.14153562,1230.4,1227.6,0.51713599]
[1760119723772,0.14153562,1230.4,1227.7,0.51713599]
[1760119723976,0.14153562,1230.4,1227.8,0.51713599]
[1760119724273,0.14153562,1230.4,1227.9,0.51713599]
[1760119724473,0.14153562,1230.4,1228.0,0.51713599]
[1760119724672,0.14153562,1230.4,1228.1,0.51713599]
[1760119724876,0.14153562,1230.4,1227.5,0.59427332]
[1760119725076,0.14153562,1230.4,1227.6,0.51736436]
[1760119725272,0.14153562,1230.4,1227.7,0.51736436]
[1760119725273,1.34731584,1230.4,1227.7,0.51736436]
[1760119725477,1.20578022,1230.3,1227.8,0.51736436]
[1760119725673,1.20578022,1230.3,1227.9,0.51736436]
[1760119725873,1.20578022,1230.3,1227.3,0.59427332]
[1760119726077,1.20578022,1230.3,1227.4,0.51758382]
[1760119726277,1.20578022,1230.3,1227.5,0.51758382]
[1760119726475,1.20578022,1230.3,1227.6,0.51758382]
[1760119726678,1.20578022,1230.3,1227.7,0.51758382]
[1760119726875,1.20578022,1230.3,1227.8,0.51758382]
[1760119727179,1.20578022,1230.3,1227.9,0.51758382]
[1760119727375,1.20578022,1230.0,1227.4,0.59427332]
[1760119727574,1.20578022,1230.0,1227.5,0.51791171]
[1760119727779,1.20578022,1230.0,1227.6,0.51791171]
[1760119728076,1.20578022,1230.0,1227.7,0.51791171]
[1760119728379,1.20578022,1230.0,1227.8,0.51791171]
[1760119728580,1.20578022,1229.7,1227.4,0.59427332]
[1760119728777,1.20578022,1229.8,1227.5,0.51796266]
[1760119728976,1.20578022,1229.8,1227.6,0.51796266]
[1760119729179,1.20578022,1229.8,1227.7,0.51796266]
[1760119729475,1.20578022,1229.8,1227.8,0.51796266]
[1760119729677,1.20578022,1229.8,1227.4,0.59427332]
[1760119729880,1.20578022,1229.8,1227.5,0.51801089]
[1760119730180,1.20578022,1229.8,1227.6,0.51801089]
[1760119730476,1.20578022,1229.7,1227.7,0.51801089]
[1760119730680,1.20578022,1229.8,1227.8,0.51801089]
[1760119730880,1.20578022,1229.7,1227.4,0.59427332]
[1760119731079,1.20578022,1229.7,1227.5,0.51808807]
[1760119731280,1.20578022,1229.7,1227.6,0.51808807]
[1760119731480,1.20578022,1229.7,1227.7,0.51808807]
[1760119731680,1.20578022,1229.7,1227.3,0.59427332]
[1760119731878,1.20578022,1229.8,1227.4,0.51809535]
[1760119732078,1.20578022,1229.8,1227.5,0.51809535]
[1760119732381,1.20578022,1229.8,1227.6,0.51809535]
[1760119732577,1.20578022,1229.8,1227.3,0.59427332]
[1760119732578,1.20578022,1229.8,1227.7,0.51809535]
[1760119732776,1.20578022,1229.7,1227.3,0.59427332]
[1760119732981,1.20578022,1229.7,1227.4,0.51803801]
[1760119733178,1.20578022,1229.7,1227.5,0.51803801]
[1760119733382,1.20578022,1229.6,1227.6,0.51803801]
[1760119733581,1.20578022,1229.6,1227.2,0.59427332]
[1760119733782,1.20578022,1229.6,1227.3,0.51797471]
[1760119733981,1.20578022,1229.6,1227.4,0.51797471]
[1760119734182,1.20578022,1229.6,1227.5,0.51797471]
[1760119734479,1.20578022,1229.6,1227.6,0.51797471]
[1760119734678,1.20578022,1229.6,1227.2,0.59427332]
[1760119734882,1.20578022,1229.6,1227.3,0.51783509]
[1760119735083,1.20578022,1229.6,1227.4,0.51783509]
[1760119735378,2.15116932,1230.4,1227.5,0.51783509]
[1760119735379,1.20578022,1229.7,1227.5,0.51783509]
[1760119735578,1.20578022,1229.7,1227.6,0.51783509]
[1760119735783,1.20578022,1230.1,1227.7,0.51763504]
[1760119735984,1.20578022,1230.2,1227.8,0.51763504]
[1760119736280,1.20578022,1230.2,1227.3,0.59427332]
[1760119736480,1.20578022,1230.2,1227.4,0.51750286]
[1760119736681,1.20578022,1230.2,1227.3,0.59427332]
[1760119736682,1.20578022,1230.2,1227.5,0.51750286]
[1760119736882,1.20578022,1230.2,1227.6,0.51750286]
[1760119737086,1.20578022,1230.2,1227.7,0.51750286]
[1760119737286,1.20578022,1230.2,1227.8,0.51750286]
[1760119737587,1.20578022,1230.2,1227.3,0.59427332]
[1760119737883,1.20578022,1230.2,1227.4,0.5174164]
[1760119738082,1.20578022,1230.2,1227.5,0.5174164]
[1760119738287,1.20578022,1230.2,1227.6,0.5174164]
[1760119738490,1.20578022,1230.2,1227.7,0.5174164]
[1760119738688,1.20578022,1230.3,1227.8,0.5174164]
[1760119738888,0.14162778,1229.6,1227.9,0.5174164]
[1760119739089,0.14162778,1229.6,1227.4,0.59427332]
[1760119739289,0.14162778,1229.6,1227.5,0.52050154]
[1760119739587,0.14162778,1229.6,1227.6,0.52050154]
[1760119739786,0.14162778,1229.6,1227.7,0.52050154]
[1760119739989,0.14162778,1229.6,1227.8,0.52050154]
[1760119740189,0.14162778,1229.6,1227.9,0.52050154]
[1760119740390,0.14162778,1229.6,1227.3,0.59427332]
[1760119740590,0.14162778,1229.6,1227.4,0.52050161]
[1760119740791,0.14162778,1229.6,1227.5,0.52050161]
[1760119740991,0.14162778,1229.6,1227.6,0.52050161]
[1760119741185,0.14162778,1229.6,1227.7,0.52050161]
[1760119741390,0.14162778,1229.6,1227.8,0.52050161]
[1760119741686,0.14162778,1229.6,1227.9,0.52050161]
[1760119741891,0.14162778,1229.6,1228.0,0.52050161]
[1760119742092,0.14162778,1229.6,1228.1,0.52050161]
[1760119742292,0.14162778,1229.6,1228.2,0.52050161]
[1760119742588,0.14162778,1229.6,1227.8,0.59427332]
[1760119742789,0.14162778,1229.6,1227.9,0.52042703]
[1760119742993,0.14162778,1229.6,1228.0,0.52042703]
[1760119743193,0.14162778,1229.6,1228.1,0.52042703]
[1760119743393,0.14162778,1229.6,1228.2,0.52042703]
[1760119743693,0.14162778,1229.6,1228.3,0.52045436]
[1760119743892,0.14162778,1229.6,1227.9,0.59427332]
[1760119744091,0.14162778,1229.6,1228.0,0.5204414]
[1760119744291,0.14162778,1229.6,1228.1,0.5204414]
[1760119744491,0.14162778,1229.6,1228.2,0.5204414]
[1760119744689,0.14162778,1229.6,1227.9,0.59427332]
[1760119744690,0.14162778,1229.6,1228.3,0.5204414]
[1760119744992,0.14162778,1229.6,1227.9,0.59427332]
[1760119745293,0.14162778,1229.6,1228.0,0.52050078]
[1760119745492,0.14162778,1229.6,1228.1,0.52050078]
[1760119745690,0.14162778,1229.6,1228.2,0.52050078]
[1760119745889,0.14162778,1229.6,1227.8,0.59427332]
[1760119746089,0.14162778,1229.6,1227.9,0.52054843]
[1760119746289,0.14162778,1229.6,1228.0,0.52054843]
[1760119746490,0.14162778,1229.6,1228.1,0.52054843]
[1760119746689,0.14162778,1229.6,1228.2,0.52054843]
[1760119746988,0.14162778,1229.6,1227.8,0.59427332]
[1760119747193,0.14162778,1229.6,1227.9,0.52061349]
[1760119747393,0.14162778,1229.6,1228.0,0.52061349]
[1760119747591,0.14162778,1229.6,1228.1,0.52061349]
[1760119747792,0.14162778,1229.6,1227.7,0.59427332]
[1760119747997,0.14162778,1229.6,1227.8,0.5207058]
[1760119748294,0.14162778,1229.6,1227.9,0.5207058]
[1760119748496,0.14162778,1229.6,1228.0,0.5207058]
[1760119748694,0.14162778,1229.6,1227.5,0.59427332]
[1760119748991,0.14162778,1229.6,1227.6,0.5208369]
[1760119749196,0.14162778,1229.6,1227.7,0.5208369]
[1760119749391,0.14162778,1229.6,1227.8,0.5208369]
[1760119749592,0.14162778,1229.6,1227.4,0.59427332]
[1760119749793,0.14162778,1229.6,1227.5,0.5208743]
[1760119749993,0.14162778,1229.6,1227.6,0.5208743]
[1760119750192,0.14162778,1229.6,1227.7,0.5208743]
[1760119750392,0.14162778,1229.6,1227.8,0.5208743]
[1760119750592,0.14162778,1229.6,1227.4,0.59427332]
[1760119750796,0.14162778,1229.6,1227.5,0.52088195]
[1760119751096,0.14162778,1229.6,1227.6,0.52088195]
[1760119751392,0.14162778,1229.6,1227.7,0.52088195]
[1760119751694,0.14162778,1229.6,1227.8,0.52088195]
[1760119751898,0.14162778,1229.6,1227.4,0.59427332]
[1760119752096,0.14162778,1229.6,1227.5,0.52091054]
[1760119752398,0.14162778,1229.6,1227.6,0.52091054]
[1760119752598,0.14162778,1229.6,1227.7,0.52091054]
[1760119752898,0.14162778,1229.6,1227.8,0.52091054]
[1760119753098,0.14162778,1229.6,1227.4,0.59427332]
[1760119753293,0.14162778,1229.6,1227.5,0.52101674]
[1760119753493,0.14162778,1229.6,1227.6,0.52101674]
[1760119753694,0.14162778,1229.6,1227.7,0.52101674]
[1760119753896,0.14162778,1229.6,1227.8,0.52101674]
[1760119754094,0.14162778,1229.6,1227.9,0.52101674]
[1760119754295,0.14162778,1229.6,1228.0,0.52101674]
[1760119754594,0.14162778,1229.6,1228.1,0.52101674]
[1760119754793,0.14162778,1229.6,1227.8,0.59427332]
[1760119754994,0.14162778,1229.6,1227.9,0.52101024]
[1760119755201,0.14162778,1229.6,1228.0,0.52101024]
[1760119755394,0.14162778,1229.6,1228.1,0.52101024]
[1760119755598,0.14162778,1229.6,1228.2,0.52101024]
[1760119755798,0.14162778,1229.6,1227.8,0.59427332]
[1760119755998,0.14162778,1229.6,1227.9,0.52116176]
[1760119756198,0.14162778,1229.6,1227.4,0.59427332]
[1760119756398,0.14162778,1229.6,1227.5,1.11556872]
[1760119756599,0.14162778,1229.6,1227.6,0.5212954]
[1760119756795,0.14162778,1229.6,1227.7,0.5212954]
[1760119756999,0.14162778,1229.6,1227.8,0.5212954]
[1760119757195,0.14162778,1229.6,1227.9,0.5212954]
[1760119757396,0.14162778,1229.6,1227.4,0.59427332]
[1760119757595,0.14162778,1229.6,1227.5,0.5213994]
[1760119757800,0.14162778,1229.6,1227.6,0.5213994]
[1760119758000,0.14162778,1229.6,1227.7,0.5213994]
[1760119758200,0.14162778,1229.6,1227.8,0.5213994]
[1760119758495,0.14162778,1229.6,1227.9,0.5213994]
[1760119758700,0.14162778,1229.6,1227.4,0.59427332]
[1760119758901,0.14162778,1229.6,1227.5,0.52158289]
[1760119759101,0.14162778,1229.6,1227.6,0.52158289]
[1760119759400,0.14162778,1229.6,1227.7,0.52158289]
[1760119759598,0.14162778,1229.6,1227.8,0.52158289]
[1760119759798,0.14162778,1229.6,1227.9,0.52158289]
[1760119763602,0.14162778,1229.6,1228.0,0.52250283]
[1760119763903,0.14162778,1229.6,1228.1,0.52250283]
[1760119764203,0.14162778,1229.6,1228.2,0.52250283]
[1760119764400,0.14162778,1229.6,1227.6,0.59427332]
[1760119764598,0.14162778,1229.6,1227.7,0.52286173]
[1760119764802,0.14162778,1229.6,1227.8,0.52286173]
[1760119765102,0.14162778,1229.6,1227.9,0.52286173]
[1760119765298,0.14162778,1229.6,1228.0,0.52286173]
[1760119765598,0.14162778,1229.6,1228.1,0.52286173]
[1760119765798,0.14162778,1229.6,1228.2,0.52286173]
[1760119766103,0.14162778,1229.6,1228.3,0.52286173]
[1760119766403,0.14162778,1229.6,1227.7,0.59427332]
[1760119766702,0.14162778,1229.6,1227.8,0.5232994]
[1760119766903,0.14162778,1229.6,1227.9,0.5232994]
[1760119767102,0.14162778,1229.6,1228.0,0.5232994]
[1760119767300,0.14162778,1229.6,1228.1,0.5232994]
[1760119767503,0.14162778,1229.6,1228.2,0.5232994]
[1760119767704,0.14162778,1229.6,1228.3,0.5232994]
[1760119767904,0.14162778,1229.6,1227.3,0.59427332]
[1760119768106,1.20578022,1229.5,1227.6,0.59427332]
[1760119768306,1.20578022,1229.4,1227.7,0.52344023]
[1760119768605,1.20578022,1229.3,1227.8,0.52344023]
[1760119768805,1.20578022,1229.3,1227.9,0.52344023]
[1760119769006,1.20578022,1229.3,1227.5,0.59427332]
[1760119769201,1.20578022,1229.4,1227.6,0.52164996]
[1760119769506,1.20578022,1229.4,1227.7,0.52164996]
[1760119769705,1.20578022,1229.4,1227.8,0.52164996]
[1760119770001,1.20578022,1229.4,1227.9,0.52164996]
[1760119770202,1.20578022,1229.5,1228.0,0.52164996]
[1760119770401,1.20578022,1229.5,1227.5,0.59427332]
[1760119770604,1.20578022,1229.5,1227.6,0.5217368]
[1760119770802,1.20578022,1229.5,1227.7,0.5217368]
[1760119771102,1.20578022,1229.5,1227.8,0.5217368]
[1760119771405,1.20578022,1229.4,1227.9,0.5217368]
[1760119771603,1.20578022,1229.4,1227.5,0.59427332]
[1760119771804,1.20578022,1229.2,1227.6,0.52187385]
[1760119772000,1.20578022,1229.2,1227.7,0.52187385]
[1760119772206,1.20578022,1229.2,1227.8,0.52187385]
[1760119772405,1.20578022,1229.2,1227.4,0.59427332]
[1760119772600,1.20578022,1229.2,1227.5,0.52202931]
[1760119772905,1.20578022,1229.2,1227.6,0.52202931]
[1760119773205,1.20578022,1229.2,1227.7,0.52202931]
[1760119773500,1.20578022,1229.2,1227.8,0.52202931]
[1760119773701,1.20578022,1229.2,1227.4,0.59427332]
[1760119773901,1.20578022,1229.2,1227.5,0.52208085]
[1760119774104,1.20578022,1229.2,1227.6,0.52208085]
[1760119774302,1.20578022,1229.2,1227.7,0.52208085]
[1760119774500,1.20578022,1229.2,1227.8,0.52208085]
[1760119774702,1.20578022,1229.2,1227.4,0.59427332]
[1760119774903,1.20578022,1229.2,1227.5,0.52212905]
[1760119775102,1.20578022,1229.2,1227.6,0.52212905]
[1760119775306,1.20578022,1229.2,1227.7,0.52212905]
[1760119775505,1.20578022,1229.2,1227.8,0.52212905]
[1760119775708,1.20578022,1229.2,1227.9,0.52212905]
[1760119775904,1.20578022,1229.2,1227.5,0.59427332]
[1760119776207,1.20578022,1229.2,1227.6,0.5221924]
[1760119776503,1.20578022,1229.2,1227.7,0.5221924]
[1760119776707,1.20578022,1229.2,1227.8,0.5221924]
[1760119776909,1.20578022,1229.2,1227.9,0.5221924]
[1760119777109,1.20578022,1229.2,1227.5,0.59427332]
[1760119777308,1.20578022,1229.2,1227.6,0.52231097]
[1760119777506,1.20578022,1229.2,1227.7,0.52231097]
[1760119777711,1.20578022,1229.2,1227.8,0.52231097]
[1760119777911,1.20578022,1229.2,1227.9,0.52231097]
[1760119778107,1.20578022,1229.2,1227.5,0.59427332]
[1760119778307,1.20578022,1229.2,1227.6,0.52235967]
[1760119778508,1.20578022,1229.2,1227.7,0.52235967]
[1760119778711,1.20578022,1229.2,1227.8,0.52235967]
[1760119778909,1.20578022,1229.2,1227.9,0.52235967]
[1760119779108,1.20578022,1229.2,1227.5,0.59427332]
[1760119779311,1.20578022,1229.2,1227.6,0.52232808]
[1760119779509,1.20578022,1229.2,1227.7,0.52232808]
[1760119779808,1.20578022,1229.2,1227.8,0.52232808]
[1760119780008,1.20578022,1229.2,1227.9,0.52232808]
[1760119780211,1.20578022,1229.2,1227.5,0.59427332]
[1760119780511,1.20578022,1229.2,1227.6,0.52230294]
[1760119780712,1.20578022,1229.2,1227.7,0.52230294]
[1760119780910,1.20578022,1229.2,1227.8,0.52230294]
[1760119781112,1.20578022,1229.2,1227.9,0.52230294]
[1760119781412,1.20578022,1229.2,1227.5,0.59427332]
[1760119781610,1.20578022,1229.2,1227.6,0.52227823]
[1760119781812,1.20578022,1229.2,1227.7,0.52227823]
[1760119782114,1.20578022,1229.3,1227.8,0.52227823]
[1760119782311,1.20578022,1229.3,1227.9,0.52227823]
[1760119782610,1.20578022,1229.3,1227.5,0.59427332]
[1760119782811,1.20578022,1229.3,1227.6,0.5220969]
[1760119783013,1.20578022,1229.3,1227.7,0.5220969]
[1760119783211,1.20578022,1229.3,1227.8,0.5220969]
[1760119783412,1.20578022,1229.3,1227.9,0.5220969]
[1760119783611,1.20578022,1229.3,1227.5,0.59427332]
[1760119783813,1.20578022,1229.3,1227.6,0.52199916]
[1760119784016,1.20578022,1229.3,1227.7,0.52199916]
[1760119784216,1.20578022,1229.3,1227.8,0.52199916]
[1760119784416,1.20578022,1229.3,1227.9,0.52199916]
[1760119784614,1.20578022,1229.3,1227.5,0.59427332]
[1760119784916,1.20578022,1229.3,1227.6,0.52198914]
[1760119785114,1.20578022,1229.3,1227.7,0.52198914]
[1760119785313,1.20578022,1229.3,1227.8,0.52198914]
[1760119785517,1.20578022,1229.3,1227.9,0.52198914]
[1760119785814,1.20578022,1229.3,1227.5,0.59427332]
[1760119786017,1.20578022,1229.3,1227.6,0.52195619]
[1760119786217,1.20578022,1229.3,1227.7,0.52195619]
[1760119786415,1.20578022,1229.4,1227.8,0.52195619]
[1760119786615,1.20578022,1229.4,1227.9,0.52195619]
[1760119786818,1.20578022,1229.4,1228.0,0.52195619]
[1760119787016,1.20578022,1229.4,1227.5,0.59427332]
[1760119787215,1.20578022,1229.4,1227.6,0.52170271]
[1760119787517,1.20578022,1229.4,1227.7,0.52170271]
[1760119787717,1.20578022,1229.4,1227.8,0.52170271]
[1760119787914,1.20578022,1229.4,1227.9,0.52170271]
[1760119788218,1.20578022,1229.4,1228.0,0.52168694]
[1760119788415,1.20578022,1229.4,1227.6,0.59427332]
[1760119788618,1.20578022,1229.4,1227.7,0.52159204]
[1760119788914,1.20578022,1229.4,1227.3,0.80380118]
[1760119788915,1.20578022,1229.4,1227.8,0.52159204]
[1760119789118,1.20578022,1229.4,1227.9,0.52159204]
[1760119789314,1.20578022,1229.4,1228.0,0.52159204]
[1760119789519,1.20578022,1229.4,1227.6,0.59427332]
[1760119789717,1.20578022,1229.4,1227.7,0.52161486]
[1760119790020,1.20578022,1229.4,1227.8,0.52161486]
[1760119790318,1.20578022,1229.4,1227.9,0.52161486]
[1760119790519,1.20578022,1229.4,1228.0,0.52161486]
[1760119790717,1.20578022,1229.4,1227.5,0.59427332]
[1760119790917,1.20578022,1229.4,1227.6,0.52137548]
[1760119791116,1.20578022,1229.4,1227.7,0.52137548]
[1760119791317,1.20578022,1229.4,1227.8,0.52137548]
[1760119791516,1.20578022,1229.4,1227.9,0.52137548]
[1760119791719,1.20578022,1229.4,1228.0,0.52137548]
[1760119791918,1.20578022,1229.4,1227.5,0.59427332]
[1760119792115,1.20578022,1229.4,1227.6,1.11567919]
[1760119792319,1.20578022,1229.5,1227.7,0.52140587]
[1760119792517,1.20578022,1229.5,1227.8,0.52140587]
[1760119792816,1.20578022,1229.5,1227.9,0.52140587]
[1760119793020,1.20578022,1229.5,1228.0,0.52140587]
[1760119793217,1.20578022,1229.5,1227.6,0.59427332]
[1760119793416,1.20578022,1229.5,1227.7,0.52155249]
[1760119793621,1.347408,1229.6,1227.8,0.52155249]
[1760119793921,1.347408,1229.6,1227.9,0.52155249]
[1760119794123,1.20578022,1229.5,1228.0,0.52155249]
[1760119794418,1.20578022,1229.5,1228.1,0.52155249]
[1760119794618,1.20578022,1229.5,1227.7,0.59427332]
[1760119794822,1.20578022,1229.5,1227.8,0.52128256]
[1760119795019,1.20578022,1229.5,1227.9,0.52128256]
[1760119795222,1.20578022,1229.5,1228.0,0.52128256]
[1760119795420,1.20578022,1229.5,1228.1,0.52128256]
[1760119795634,1.20578022,1229.5,1227.7,0.59427332]
[1760119795835,0.14162778,1229.6,1227.9,0.59427332]
[1760119796130,0.14162778,1229.6,1228.0,0.52029437]
[1760119796334,0.14162778,1229.6,1228.1,0.52029437]
[1760119796629,0.14162778,1229.6,1228.2,0.52029437]
[1760119796834,0.14162778,1229.6,1228.3,0.52029437]
[1760119797134,0.14162778,1229.6,1228.4,0.52029437]
[1760119797334,0.14162778,1229.6,1228.5,0.52029437]
[1760119797535,0.14162778,1229.6,1228.1,0.59427332]
[1760119797731,0.14162778,1229.6,1228.2,0.51983735]
[1760119797935,0.14162778,1229.6,1228.3,0.51983735]
[1760119798135,0.14162778,1229.6,1228.4,0.51983735]
[1760119798334,0.14162778,1229.6,1228.5,0.51983735]
[1760119798536,0.14162778,1229.6,1228.6,0.51983735]
[1760119798732,0.14162778,1229.6,1228.7,0.51983735]
[1760119798931,0.14162778,1229.6,1228.8,0.51983735]
[1760119799137,0.14162778,1229.6,1228.1,0.59427332]
[1760119799437,0.14162778,1229.6,1228.2,0.5186304]
[1760119799635,0.14162778,1229.6,1228.3,0.5186304]
[1760119799931,0.14162778,1229.6,1228.4,0.5186304]
[1760119800136,0.14162778,1229.6,1228.5,0.5186304]
[1760119800334,0.14162778,1229.6,1228.6,0.5186304]
[1760119800532,0.14162778,1229.6,1228.2,0.59427332]
[1760119800737,0.14162778,1229.6,1228.3,0.51874997]
[1760119800937,0.14162778,1229.6,1228.4,0.51874997]
[1760119801233,0.14162778,1229.6,1228.5,0.51874997]
[1760119801539,0.14162778,1229.6,1228.6,0.51874997]
[1760119801734,0.14162778,1229.6,1228.7,0.51874997]
[1760119801933,0.14162778,1229.6,1228.2,0.59427332]
[1760119802132,0.14162778,1229.6,1228.3,0.51863307]
[1760119802437,0.14162778,1229.6,1228.4,0.51863307]
[1760119802637,0.14162778,1229.6,1228.5,0.51863307]
[1760119802838,0.14162778,1229.6,1228.6,0.51863307]
[1760119803134,0.14162778,1229.6,1228.2,0.59427332]
[1760119803339,0.14162778,1229.6,1228.3,0.51834704]
[1760119803539,0.14162778,1229.6,1228.4,0.51834704]